Cogmind - Beta 14 @@@ ROGUE MODE // 2024.09.26 @ 21:01:47 Player: Some Pennies Result: Destroyed by UA-IOR(R) with Subdweller Machine Gun Performance ------------- Evolutions (0) 0 Regions Visited (2) 400 Robots Destroyed (42) 210 Value Destroyed (936) 936 Prototype IDs (0) 0 Alien Tech Used (0) 0 Bonus (0) 0 TOTAL SCORE: 1546 Bonus ------- None Cogmind --------- Core Integrity 0/250 Matter 243/300 Energy 45/100 System Corruption 0% Temperature Cool (10) Movement Treading (320) Ox2 Location -10/Subcaves Parts ------- > --- POWER (1) -------- (None) > --- PROPULSION (2) --- Light Treads Improved Treads > --- UTILITY (2) ------ Huge Storage Unit Light Armor Plating > --- WEAPON (2) ------- Subdweller Beam Cannon Battle Rifle > --- INVENTORY (25) --- Subdweller Power Source Light Treads Light Treads Improved Treads Improved Treads Spiked Treads VTOL Module VTOL Module VTOL Module VTOL Module Heat Sink Improved Heat Sink Medium Storage Unit Signal Interpreter Improved Terrain Scanner Seismic Detector Seismic Detector Riot Gun Light Assault Rifle Subdweller Machine Gun Rocket Launcher Rocket Launcher Mining Laser Peak State ------------ > --- POWER ------------ Light Nuclear Core > --- PROPULSION ------- Light Treads Improved Treads > --- UTILITY ---------- Huge Storage Unit Light Armor Plating > --- WEAPON ----------- Subdweller Beam Cannon Battle Rifle > --- INVENTORY -------- Subdweller Power Source Light Treads Light Treads Improved Treads Improved Treads Spiked Treads VTOL Module VTOL Module VTOL Module VTOL Module Heat Sink Improved Heat Sink Medium Storage Unit Signal Interpreter Improved Terrain Scanner Seismic Detector Seismic Detector Light Armor Plating Riot Gun Light Assault Rifle Subdweller Machine Gun Rocket Launcher Rocket Launcher Mining Laser [Rating: 16] Favorites ----------- Power Ion Engine Engine Ion Engine Power Core Light Nuclear Core Propulsion Light Treads Treads Light Treads Utility Huge Storage Unit Device Seismic Detector Storage Huge Storage Unit Protection Light Armor Plating Weapon Light Assault Rifle Energy Cannon Subdweller Beam Cannon Ballistic Gun Light Assault Rifle Launcher Rocket Launcher Special Weapon Mining Laser Build | -11 -10 -10 ------- Run | Yrd Mat Sub Slots Evolved . | . . . Power . | . . . Propulsion . | . . . Utility . | . . . Weapon . | . . . Parts Attached 55 | 8 31 16 Power 6 | 1 4 1 Engine 5 | 1 4 . Core 1 | . . 1 Reactor . | . . . Propulsion 11 | 2 7 2 Treads 11 | 2 7 2 Leg . | . . . Wheel . | . . . Hover . | . . . Flight . | . . . Utility 9 | 3 3 3 Device 4 | 2 2 . Storage 2 | 1 1 . Processor . | . . . Hackware . | . . . Protection 3 | . . 3 Artifact . | . . . Weapon 29 | 2 17 10 Energy Gun . | . . . Energy Cannon 1 | . . 1 Ballistic Gun 15 | 2 8 5 Ballistic Cannon . | . . . Launcher 9 | . 5 4 Special Weapon 4 | . 4 . Impact Weapon . | . . . Slashing Weapon . | . . . Piercing Weapon . | . . . Special Melee Weapon . | . . . Unidentified Prototypes . | . . . Parts Lost 12 | . 5 7 Power 4 | . 2 2 Propulsion 3 | . 1 2 Utility 3 | . 1 2 Weapon 2 | . 1 1 Highest Loss Streak 5 | . 3 5 To Critical Strikes . | . . . Average Slot Usage (%) 95 | . 94 99 Engine 8 | . 9 7 Core 1 | . . 5 Treads 27 | . 27 28 Device 12 | . 13 7 Storage 14 | . 14 14 Protection 1 | . . 6 Energy Cannon 1 | . . 4 Ballistic Gun 22 | . 26 13 Launcher 3 | . . 10 Peak Build Rating 16 | 7 11 16 Average Rating 10 | 5 9 12 On Entrance 6 | . 7 11 Naked Turns . | . . . Heaviest Build 98 | 12 89 98 Greatest Support 43 | 40 43 43 Greatest Overweight (x) 4 | . 4 2 Average Overweight (x) 1 | . 1 2 Largest Inventory Capacity 25 | 8 25 25 Average Capacity 24 | 7 24 25 Most Carried 25 | 6 25 25 Average Carried 20 | 3 19 23 Final Capacity 25 | 8 25 25 Final Carried 25 | 5 25 23 Class Distribution -------------------- 100% | Mutant Dominant Class ---------------- Mutant | -10/Materials Mutant | -10/Subcaves Resources | -11 -10 -10 ----------- Run | Yrd Mat Sub Matter Collected 1195 | 304 557 334 Remotely . | . . . Salvage Created 1209 | 123 948 138 Parts 109 | 12 84 13 Haulers Intercepted 2 | . 2 . Recyclers Shooed . | . . . Parts Field Recycled . | . . . Retrieved Matter . | . . . Parts Self-Destructed 9 | . . 9 Prevented . | . . . Kills | -11 -10 -10 ------- Run | Yrd Mat Sub Combat Hostiles Destroyed 28 | . 21 7 Guns 22 | . 18 4 Cannons 1 | . . 1 AOE 5 | . 3 2 Classes Destroyed 10 | 2 6 2 Worker 1 | . 1 . Builder 2 | . 2 . Tunneler 3 | 3 . . Hauler 2 | . 2 . Recycler 2 | 1 1 . Turret 2 | . . 2 Watcher 2 | . 2 . Swarmer 9 | . 6 3 Grunt 15 | . 15 . Subdweller 4 | . . 4 Best Kill Streak 5 | 2 5 3 Combat Bots Only 5 | . 5 3 Max Kills in Single Turn 2 | 1 2 1 Gunslinging . | . . . Exploded 2 | . 2 1 Melee . | . . . Uniques/NPCs Destroyed . | . . . Combat | -11 -10 -10 -------- Run | Yrd Mat Sub Hostile Shots Fired 216 | . 94 122 Missed 62 | . 17 45 Damage Taken 2026 | . 1038 988 Core 275 | . 155 120 Absorbed by Shields . | . . . Core Remaining (%) 100 | 100 . . Volleys Fired 152 | 6 106 40 Largest 2 | 2 2 2 Hottest 105 | 40 100 105 Shots Fired 278 | 12 195 71 Gun 228 | 12 178 38 Cannon 18 | . . 18 Launcher 21 | . 6 15 Special 11 | . 11 . Kinetic 228 | 12 178 38 Thermal 29 | . 11 18 Explosive 21 | . 6 15 Electromagnetic . | . . . Robot Hit Streak 14 | 8 10 14 Robot Miss Streak 5 | 2 5 2 Penetration Max . | . . . Secondary Targets . | . . . Shots Hit Robots 159 | 8 105 46 Core Hits 88 | 5 61 22 Critical Kills 1 | . 1 . Critical Parts Destroyed . | . . . Critical Strikes 1 | . 1 . Destroy 1 | . 1 . Melee Attacks . | . . . Impact . | . . . Slashing . | . . . Piercing . | . . . Sneak Attacks . | . . . Combat Hostiles . | . . . Follow-up Attacks . | . . . Damage Inflicted 2597 | 96 1249 1252 Guns 1314 | 96 940 278 Cannons 404 | . . 404 Explosions 844 | . 274 570 Melee . | . . . Ramming 35 | . 35 . Kinetic 1314 | 96 940 278 Thermal 404 | . . 404 Explosive 844 | . 274 570 Electromagnetic . | . . . Impact . | . . . Slashing . | . . . Piercing . | . . . Highest Corruption . | . . . Average Corruption . | . . . Corruption Purged . | . . . Corruption Blocked . | . . . Overload Shots . | . . . Overflow Damage 2 | . . 2 Projectiles . | . . . Explosions 2 | . . 2 Melee . | . . . Knockbacks . | . . . Impact . | . . . Kinetic . | . . . Secondary . | . . . Self-Inflicted Damage 158 | . 72 86 Shots 5 | . 3 2 Rammed 5 | . 5 . Targets Rammed 5 | . 5 . Kicked . | . . . Crushed . | . . . Highest Temperature 82 | . 80 82 Average Temperature 23 | . 19 32 Received Heat Transfer 630 | . 399 231 Siege Activations . | . . . Robots Corrupted . | . . . Combat Hostiles . | . . . Parts Fried . | . . . Impact Corruptions . | . . . Robots Melted . | . . . Combat Hostiles . | . . . Parts Melted 1 | . . 1 Heat Transferred 555 | . . 555 Parts Sabotaged . | . . . Parts Stolen . | . . . Parts Stripped . | . . . Power Chain Reactions . | . . . Alert | -11 -10 -10 ------- Run | Yrd Mat Sub Peak Influence 306 | 20 306 . Initial 13 | . 13 . Average 138 | 9 146 . Maximum Alert Level 1 | . 1 . Low Security (%) 57 | 100 54 . Level 1 42 | . 45 . Level 2 . | . . . Level 3 . | . . . Level 4 . | . . . Level 5 . | . . . High Security . | . . . Max Security . | . . . Squads Dispatched 5 | . 5 . Investigation 4 | . 4 . Extermination . | . . . Reinforcement 1 | . 1 . Assault . | . . . Garrison . | . . . Intercept . | . . . Searches Triggered . | . . . Construction Impeded . | . . . Haulers Reinforced . | . . . Active Scanning Responses . | . . . Cargo Convoy Interrupts . | . . . Stealth | -11 -10 -10 --------- Run | Yrd Mat Sub Distress Signals . | . . . Communications Jammed . | . . . Distress Signals . | . . . Times Spotted 48 | . 33 15 Peak Tracking Total 6 | . 3 6 Tactical Retreats 3 | . 1 2 Traps | -11 -10 -10 ------- Run | Yrd Mat Sub Traps Triggered 4 | . 4 . Indirectly . | . . . Trap Hack Attempts . | . . . Triggered . | . . . Disarmed . | . . . Reprogrammed . | . . . Reused . | . . . Traps Extracted . | . . . Installed . | . . . Triggered . | . . . Machines | -11 -10 -10 ---------- Run | Yrd Mat Sub Machines Disabled 4 | . 1 3 Max in Single Turn 3 | . 1 3 Machines Repaired . | . . . Machines Dismantled . | . . . Machines Sabotaged . | . . . Overloaded Fab Kills . | . . . Hacking | -11 -10 -10 --------- Run | Yrd Mat Sub Machines Accessed 9 | . 9 . Terminals 6 | . 6 . Fabricators . | . . . Repair Stations 1 | . 1 . Recycling Units 2 | . 2 . Scanalyzers . | . . . Garrison Access . | . . . Total Hacks 24 | . 24 . Successful 11 | . 11 . Failed 13 | . 13 . Catastrophic 1 | . 1 . Database Lockouts . | . . . Manual 20 | . 20 . Terminals 18 | . 18 . Fabricators . | . . . Repair Stations 1 | . 1 . Recycling Units 5 | . 5 . Scanalyzers . | . . . Garrison Access . | . . . Terminal Hacks 2 | . 2 . Robot Analysis 2 | . 2 . Fabricator Hacks . | . . . Repair Station Hacks . | . . . Recycling Unit Hacks 2 | . 2 . Retrieve Components 2 | . 2 . Scanalyzer . | . . . Garrison Access Hacks . | . . . Unauthorized Hacks 7 | . 7 . Terminals 5 | . 5 . Skim 5 | . 5 . Fabricators . | . . . Repair Stations . | . . . Recycling Units 2 | . 2 . Tunnel 2 | . 2 . Scanalyzers . | . . . Garrison Access . | . . . Data Cores Recovered . | . . . Used . | . . . Hacking Detections 6 | . 6 . Full Trace Events . | . . . Feedback Events . | . . . Feedback Blocked . | . . . Robot Schematics Acquired . | . . . Robots Built . | . . . Authchips . | . . . Time . | . . . Total Robot Build Rating . | . . . Part Schematics Acquired . | . . . Parts Built . | . . . Authchips . | . . . Time . | . . . Total Part Build Rating . | . . . Parts Repaired . | . . . Time . | . . . Parts Recycled . | . . . Recycled Matter . | . . . Retrieved Matter . | . . . Retrieved Components 2 | . 2 . Parts Scanalyzed . | . . . Part Schematics Acquired . | . . . Parts Damaged . | . . . Bothacking | -11 -10 -10 ------------ Run | Yrd Mat Sub Used RIF Installer . | . . . Robots Hacked . | . . . Non-combat . | . . . Combat . | . . . Robot Hacks Applied . | . . . Relay Couplers Released . | . . . Fabnet Peak Effective % . | . . . Robots Rewired . | . . . Allies Hacked . | . . . Hacks Repelled . | . . . Allies | -11 -10 -10 -------- Run | Yrd Mat Sub Total Allies . | . . . Largest Group . | . . . Highest-Rated Group . | . . . Highest-Rated Ally . | . . . Total Orders . | . . . Ally Attacks . | . . . Total Damage . | . . . Kills . | . . . Allies Corrupted . | . . . Allies Melted . | . . . Intel | -11 -10 -10 ------- Run | Yrd Mat Sub Robot Analysis Total 2 | . 2 . Derelict Logs Recovered 1 | . . 1 Drone Launches . | . . . Drone Recoveries . | . . . Exploration | -11 -10 -10 ------------- Run | Yrd Mat Sub Turns Passed 3610 | 155 2475 980 Spaces Moved 960 | 82 630 248 Core 16 | 16 . . Treads 944 | 66 630 248 Legs . | . . . Wheels . | . . . Hover . | . . . Flight . | . . . Fastest Speed 50 | 50 160 320 Average Speed 291 | 138 300 320 Slowest Speed 480 | 160 480 320 Overloaded Moves . | . . . Propulsion Burnouts . | . . . Robots Hopped . | . . . Cave-ins Triggered . | . . . Exploration Rate (%) 35 | 4 85 18 Regions Visited 2 Branch Regions 1 Pre-discovered Areas 2 | . 2 . Known Exits Taken 1 | . 1 . Unknown Exits Taken 1 | 1 . . Scrap Searched 4 | . . 4 Spaces Dug 30 | . 30 . Terrain Destroyed 134 | . 59 75 Melee . | . . . Projectile 13 | . 11 2 AOE 121 | . 48 73 Terrain Rammed . | . . . Walls Destroyed . | . . . Machines Disabled . | . . . Actions | -11 -10 -10 --------- Run | Yrd Mat Sub Total 1489 | 113 1009 367 Wait 255 | 2 197 56 Move 958 | 81 629 248 Hop . | . . . Pick Up 48 | 14 30 4 Fast Attach 6 | . 4 2 Attach 18 | 7 5 6 Detach 1 | . . 1 Swap 31 | 1 22 8 Drop 15 | 2 11 2 Fire 152 | 6 106 40 Melee . | . . . Ram . | . . . Kick . | . . . Crush 5 | . 5 . Escape Stasis . | . . . Rewire . | . . . Trap . | . . . Miscellaneous . | . . . Route ------- -11/Scrapyard -10/Materials (discovered 6 exits: *Mat x3 / [*Min x2] / *Sub) -10/Subcaves (discovered 3 exits: [*Mat x2] / [*Rec]) History --------- Turn | Location | Event 8 | -11/Scrapyard | Discovered new exit (range 15) 156 | -11/Scrapyard | Entered Materials 303 | -10/Materials | Build established: Mutant 992 | -10/Materials | Discovered new exit (range 4) 1047 | -10/Materials | Lost 3 parts (1p1n1w) 1388 | -10/Materials | Discovered new exit (range 7) 1585 | -10/Materials | Core integrity fell below 50% 1598 | -10/Materials | Discovered new exit (range 16) 2366 | -10/Materials | Discovered new exit (range 7) 2453 | -10/Materials | Learned location of 2 exits from Mines 2485 | -10/Materials | Learned 4 Subcaves zone layouts 2507 | -10/Materials | Loaded intel: 2 recycling unit locations 2521 | -10/Materials | Loaded intel: 6 trap records 2525 | -10/Materials | Learned Storage emergency access door positions 2526 | -10/Materials | Identified exit to Subcaves 2528 | -10/Materials | Learned Materials recycling unit intel 2538 | -10/Materials | Identified exit to Materials 2538 | -10/Materials | Learned location of 2 exits from Materials 2631 | -10/Materials | Entered Subcaves 2795 | -10/Subcaves | Discovered new exit (range 16) 3178 | -10/Subcaves | Core integrity fell below 20% 3194 | -10/Subcaves | Discovered new exit (range 16) 3212 | -10/Subcaves | Lost 5 parts (1p2n1u1w) 3434 | -10/Subcaves | Learned Materials stockpile data 3588 | -10/Subcaves | Discovered new exit (range 10) 3611 | -10/Subcaves | Destroyed by UA-IOR(R) with Subdweller Machine Gun Last Messages --------------- 03371_ Found 47 Matter. 03372_ Acquired 47 matter. 03392_ Subatomizers dissect the Lgt. Assault Rifle. 03393_ Acquired Sub. Power Source. 03404_ Acquired Sub. Machine Gun. 03417_ Subatomizers dissect the Lgt. Assault Rifle, destroying it. 03434_ Acquired derelict log, extracted data. Data stored: Materials stockpile data. 03510_ Searching scrap... 03510_ Found Flamer. 03510_ Found 55 Matter. 03511_ Acquired 55 matter. 03547_ Sub. Monowheel melted. 03547_ 1M-40U(R) destroyed. 03562_ Acquired 32 matter. 03588_ EXIT=FOUND 03595_ Lgt. Nuclear Core destroyed. 03601_ Lgt. Armor Plating destroyed. Map ----- +----------------------------------------------------+ | | | | | | | | | | | | | ?????????????????????????????????????????????????? | | ?????????????????????????????????????????????????? | | ?????????????????????????????????????????????????? | | ?????????????????????????????????????????????????? | | ?????????????????????????????????????????????????? | | ?????????????????????????????????????????????????? | | ?????????????????????????????????????????????????? | | ?????????????????????????????????????????????????? | | ?????????????????????????????????????????????????? | | ?????????????????????????????????????????????????? | | ?????????????????????????????????????????????????? | | ?????????????????????????????????????????????????? | | ?????????????????????????????????????????????????? | | ?????????????????????????????????????????????????? | | ?????????????????????????????????????????????????? | | ????????????????????????????????????####?????????? | | ????????????????????########???????## |####??????# | | ???????????????????## ###?????# ## #####??# | | ?????????? < ## ##????## ### ##?# | | ???????????# @" ###### ##?## # ### | | ???????????# R ## #&" #%#??### # ## | | ???????????# ???# "" ###????## # | | ???????????# ###?????# ###???????## | | ??????????? ???????????## ## ##??????????## # | | ??????????????????????????#########???????????# ## | | # #####?## ##??????????????????????????????###? | | #??????# #??????????????????????????????????? | | ##?????###????#####?????????????????????????? | | #???????????##"" ##????????????????????????? | | #???????????# """##????????????????????????? | | #???????????#"" " #????????????????????????? | | #???????????#"" +????????????????????????? | | ###?????????# """ #????????????????????????? | | #?????????#" " ?#????????????????????????? | | #?????????# " ?#????????????????????????? | | "" ##?????????#" "" #????????????????????????? | | "" ##??????????#? " #????????????????????????? | | "" ##?????????????" ????????????????????????? | | " #????###??????#? #????????????????????????? | | # ##???## ##???####?###????????????????????????? | | ## #????# ##### ### ????????????????????????? | | ## ##??## ## ????????????????????????? | | " #### #????????????????????????? | | # # ## ????????????????????????? | +----------------------------------------------------+ Best States ------------- Heat Dissipation 25 Energy Generation 14 Energy Capacity 250 Matter Stores 300 Matter Capacity 300 Sight Range 16 Terrain Scan Density 10 Armor Coverage 150 Evasion (%) 50 Recoil Reduction 2 Item Schematics ----------------- None Robot Schematics ------------------ None Fabricated ------------ Nothing Alien Tech Used ----------------- None Achievements -------------- None Challenges ------------ None Game ------ Seed CarbideXenonBroadsword Manual? 0 Play Time 00:17:47 Cumulative 339.6 hours Start 2024.09.26 @ 20:39:35 End 2024.09.26 @ 21:01:47 Sessions 1 Manual Loads 0 Difficulty Rogue Special Mode None Game No. 245 Rogue 240 Adventurer 5 Explorer 0 Win Type - Total 7 Types 4/0/3/0/0/0/0/0/0 Lore% 67 Gallery% 85 Achievement% 70 Wizard Run 0 Options --------- Layout 2 ASCII 0 Keyboard 0 Movement Mouse Keybinds 0 Fullscreen 2 Font 24/Smallcaps Map View 50x44 Zoom Use 0% Tactical HUD 1 Map Filters NONE Filters NONE Steam 1 RUN: c91c3b1a-904c-45be-9944-9b736762b703